fUSD/lending_fUSD_20260511
["ID","MTS","AMOUNT","RATE_DAILY","PERIOD"]
[422033095,1778502638000,-205.1539391,0.00032,120]
[422033103,1778502638000,-457.04680841,0.00032008,2]
[422033101,1778502638000,-250.0,0.00032,120]
[422033105,1778502638000,-1999.90921631,0.000322,15]
[422033100,1778502638000,-500.0,0.00032,120]
[422033102,1778502638000,-398.0,0.00032,120]
[422033104,1778502638000,-200.0,0.00032055,2]
[422033106,1778502638000,-241.0,0.0003221,5]
[422033109,1778502638000,-153.0,0.00032504,30]
[422033108,1778502638000,-158.0,0.00032504,30]
[422033110,1778502638000,-154.0,0.00032507,30]
[422033097,1778502638000,-430.93684224,0.00032,120]
[422033114,1778502638000,-285.0,0.00032507,30]
[422033111,1778502638000,-159.0,0.00032507,30]
[422033116,1778502638000,-154.0,0.00032508,30]
[422033113,1778502638000,-150.0,0.00032507,30]
[422033107,1778502638000,-2892.4751941,0.00032404,2]
[422033112,1778502638000,-195.0,0.00032507,30]
[422033117,1778502638000,-317.0,0.00032508,30]
[422033120,1778502638000,-1535.66586816,0.00032579,2]
[422033118,1778502638000,-159.0,0.00032508,30]
[422033119,1778502638000,-215.19135421,0.00032579,6]
[422033121,1778502638000,-194.92944039,0.00032579,2]
[422033068,1778502638000,-154.0,0.00031507,30]
[422033115,1778502638000,-167.73541846,0.00032508,30]
[422033099,1778502638000,-162.16061106,0.00032,3]
[422033122,1778502638000,-15491.42308406,0.00032654,7]
[422033096,1778502638000,-588.4105532,0.00032,120]
[422033069,1778502638000,-159.0,0.00031507,30]
[422033071,1778502638000,-154.0,0.00031508,30]
[422033082,1778502638000,-300.0,0.00031926,2]
[422033077,1778502638000,-150.0,0.00031508,30]
[422033079,1778502638000,-986.89192752,0.00031623,12]
[422033074,1778502638000,-150.0,0.00031508,30]
[422033098,1778502638000,-17191.24109282,0.00032,3]
[422033076,1778502638000,-150.0,0.00031508,30]
[422033078,1778502638000,-162.0,0.00031508,30]
[422033081,1778502638000,-500.0,0.00031774,60]
[422033075,1778502638000,-150.0,0.00031508,30]
[422033073,1778502638000,-159.0,0.00031508,30]
[422033080,1778502638000,-600.0,0.00031774,60]
[422033084,1778502638000,-300.0,0.00031926,2]
[422033094,1778502638000,-211.78932841,0.00032,120]
[422033085,1778502638000,-300.0,0.00031926,2]
[422033090,1778502638000,-194.0,0.00031926,2]
[422033088,1778502638000,-300.0,0.00031926,2]
[422033093,1778502638000,-20800.0,0.00032,120]
[422033089,1778502638000,-300.0,0.00031926,2]
[422033091,1778502638000,-205.84064923,0.00032,120]
[422033086,1778502638000,-300.0,0.00031926,2]
[422033092,1778502638000,-172.55259561,0.00032,120]
[422033087,1778502638000,-300.0,0.00031926,2]
[422033083,1778502638000,-300.0,0.00031926,2]
[422033155,1778502639000,-158.657747,0.00032877,7]
[422033153,1778502639000,-158.657747,0.00032877,7]
[422033154,1778502639000,-158.657747,0.00032877,7]
[422033151,1778502639000,-158.657747,0.00032877,7]
[422033159,1778502639000,-158.657747,0.00032877,7]
[422033150,1778502639000,-158.657747,0.00032877,7]
[422033152,1778502639000,-158.657747,0.00032877,7]
[422033161,1778502639000,-158.657756,0.00032877,7]
[422033160,1778502639000,-158.657747,0.00032877,7]
[422033148,1778502639000,-158.657747,0.00032877,7]
[422033156,1778502639000,-158.657747,0.00032877,7]
[422033173,1778502639000,-809.34,0.00032877,7]
[422033168,1778502639000,-151.0,0.00032877,7]
[422033165,1778502639000,-151.0,0.00032877,7]
[422033167,1778502639000,-151.0,0.00032877,7]
[422033164,1778502639000,-151.0,0.00032877,7]
[422033171,1778502639000,-151.0,0.00032877,7]
[422033162,1778502639000,-151.0,0.00032877,7]
[422033166,1778502639000,-151.0,0.00032877,7]
[422033170,1778502639000,-151.0,0.00032877,7]
[422033169,1778502639000,-151.0,0.00032877,7]
[422033174,1778502639000,-172.55259561,0.00033,120]
[422033158,1778502639000,-158.657747,0.00032877,7]
[422033172,1778502639000,-219.362542,0.00032877,7]
[422033157,1778502639000,-158.657747,0.00032877,7]
[422033133,1778502639000,-154.0,0.00032877,120]
[422033147,1778502639000,-158.657747,0.00032877,7]
[422033123,1778502639000,-57497.70366729,0.00032654,7]
[422033124,1778502639000,-200.0,0.00032877,120]
[422033126,1778502639000,-250.0,0.00032877,120]
[422033132,1778502639000,-250.0,0.00032877,120]
[422033135,1778502639000,-151.0,0.00032877,7]
[422033129,1778502639000,-150.0,0.00032877,120]
[422033128,1778502639000,-229.0,0.00032877,120]
[422033136,1778502639000,-151.0,0.00032877,7]
[422033125,1778502639000,-348.0,0.00032877,120]
[422033134,1778502639000,-236.66,0.00032877,2]
[422033127,1778502639000,-250.0,0.00032877,120]
[422033131,1778502639000,-250.0,0.00032877,120]
[422033130,1778502639000,-174.0,0.00032877,120]
[422033137,1778502639000,-151.0,0.00032877,7]
[422033139,1778502639000,-151.0,0.00032877,7]
[422033140,1778502639000,-242.841462,0.00032877,7]
[422033141,1778502639000,-175.47,0.00032877,120]
[422033146,1778502639000,-158.657747,0.00032877,7]
[422033138,1778502639000,-151.0,0.00032877,7]
[422033142,1778502639000,-158.657747,0.00032877,7]
[422033145,1778502639000,-158.657747,0.00032877,7]
[422033144,1778502639000,-158.657747,0.00032877,7]
[422033143,1778502639000,-158.657747,0.00032877,7]
[422033149,1778502639000,-158.657747,0.00032877,7]
[422033176,1778502639000,-200.0,0.00033,120]
[422033163,1778502639000,-151.0,0.00032877,7]
[422033186,1778502639000,-234.0,0.00033346,2]
[422033205,1778502639000,-159.0,0.00033507,30]
[422033202,1778502639000,-158.0,0.00033504,30]
[422033203,1778502639000,-153.0,0.00033504,30]
[422033201,1778502639000,-183.47,0.00033491,120]
[422033215,1778502639000,-237.0,0.00033658,2]
[422033219,1778502639000,-350.0,0.000339,120]
[422033218,1778502639000,-430.93684224,0.000339,120]
[422033217,1778502639000,-172.55259561,0.000339,120]
[422033216,1778502639000,-168.88,0.00033724,3]
[422033212,1778502639000,-150.0,0.00033658,2]
[422033210,1778502639000,-150.0,0.00033658,2]
[422033214,1778502639000,-150.0,0.00033658,2]
[422033213,1778502639000,-150.0,0.00033658,2]
[422033211,1778502639000,-150.0,0.00033658,2]
[422033220,1778502639000,-350.0,0.000339,120]
[422033225,1778502639000,-400.0,0.000339,120]
[422033222,1778502639000,-300.0,0.000339,120]
[422033224,1778502639000,-258.0,0.000339,120]
[422033226,1778502639000,-400.0,0.000339,120]
[422033227,1778502639000,-258.0,0.000339,120]
[422033228,1778502639000,-200.0,0.000339,120]
[422033223,1778502639000,-300.0,0.000339,120]
[422033188,1778502639000,-150.0,0.00033346,2]
[422033204,1778502639000,-154.0,0.00033507,30]
[422033208,1778502639000,-159.0,0.00033508,30]
[422033221,1778502639000,-214.0,0.000339,120]
[422033206,1778502639000,-154.0,0.00033508,30]
[422033197,1778502639000,-500.0,0.00033418,60]
[422033178,1778502639000,-570.935201,0.00033,14]
[422033175,1778502639000,-430.93684224,0.00033,120]
[422033187,1778502639000,-264.0,0.00033346,2]
[422033180,1778502639000,-173.79484623,0.00033281,17]
[422033177,1778502639000,-260.0,0.00033,120]
[422033183,1778502639000,-150.0,0.00033346,2]
[422033182,1778502639000,-150.0,0.00033346,2]
[422033179,1778502639000,-350.0,0.00033014,5]
[422033185,1778502639000,-150.0,0.00033346,2]
[422033181,1778502639000,-2489.37515,0.000333,120]
[422033189,1778502639000,-154.0,0.00033346,2]
[422033184,1778502639000,-150.0,0.00033346,2]
[422033200,1778502639000,-234.0,0.00033483,2]
[422033207,1778502639000,-317.0,0.00033508,30]
[422033191,1778502639000,-150.0,0.00033346,2]
[422033199,1778502639000,-150.0,0.00033483,2]
[422033198,1778502639000,-284.0,0.00033483,2]
[422033195,1778502639000,-2707.63472876,0.00033398,2]
[422033209,1778502639000,-163.0,0.0003365,11]
[422033194,1778502639000,-2419.52374849,0.00033365,2]
[422033192,1778502639000,-150.0,0.00033346,2]
[422033190,1778502639000,-150.0,0.00033346,2]
[422033193,1778502639000,-152.0,0.00033346,2]
[422033196,1778502639000,-600.0,0.00033418,60]
[422033265,1778502640000,-317.0,0.00034508,30]
[422033266,1778502640000,-159.0,0.00034508,30]
[422033263,1778502640000,-159.0,0.00034507,30]
[422033267,1778502640000,-5000.0,0.00034527,2]
[422033262,1778502640000,-154.0,0.00034507,30]
[422033270,1778502640000,-5000.0,0.00034527,2]
[422033258,1778502640000,-512.62245906,0.00034072,2]
[422033269,1778502640000,-5000.0,0.00034527,2]
[422033261,1778502640000,-153.0,0.00034504,30]
[422033268,1778502640000,-5000.0,0.00034527,2]
[422033260,1778502640000,-158.0,0.00034504,30]
[422033264,1778502640000,-154.0,0.00034508,30]
[422033285,1778502640000,-250.71,0.000352,7]
[422033274,1778502640000,-413.32,0.00034544,60]
[422033275,1778502640000,-739.46,0.00034544,60]
[422033273,1778502640000,-5252.68,0.00034544,60]
[422033280,1778502640000,-1645.40580473,0.00035,60]
[422033284,1778502640000,-173.79484623,0.00035155,20]
[422033276,1778502640000,-547.53709541,0.000349,120]
[422033283,1778502640000,-1471.4846724,0.00035139,2]
[422033281,1778502640000,-600.0,0.00035062,60]
[422033282,1778502640000,-500.0,0.00035062,60]
[422033278,1778502640000,-350.0,0.00034931,5]
[422033279,1778502640000,-430.93684224,0.00035,120]
[422033259,1778502640000,-241.0,0.00034182,7]
[422033272,1778502640000,-5000.0,0.00034527,2]
[422033256,1778502640000,-350.0,0.00033973,5]
[422033232,1778502640000,-250.0,0.000339,120]
[422033255,1778502640000,-150.0,0.000339,120]
[422033231,1778502640000,-250.0,0.000339,120]
[422033286,1778502640000,-1500.0,0.000352,7]
[422033230,1778502640000,-155.0,0.000339,120]
[422033229,1778502640000,-200.0,0.000339,120]
[422033234,1778502640000,-350.0,0.000339,120]
[422033244,1778502640000,-150.0,0.000339,120]
[422033233,1778502640000,-186.0,0.000339,120]
[422033237,1778502640000,-150.0,0.000339,120]
[422033236,1778502640000,-205.0,0.000339,120]
[422033235,1778502640000,-350.0,0.000339,120]
[422033240,1778502640000,-288.0,0.000339,120]
[422033238,1778502640000,-154.0,0.000339,120]
[422033252,1778502640000,-218.0,0.000339,120]
[422033241,1778502640000,-250.0,0.000339,120]
[422033242,1778502640000,-250.0,0.000339,120]
[422033243,1778502640000,-174.0,0.000339,120]
[422033245,1778502640000,-198.0,0.000339,120]
[422033247,1778502640000,-201.0,0.000339,120]
[422033248,1778502640000,-150.0,0.000339,120]
[422033250,1778502640000,-300.0,0.000339,120]
[422033249,1778502640000,-256.0,0.000339,120]
[422033251,1778502640000,-300.0,0.000339,120]
[422033254,1778502640000,-208.0,0.000339,120]
[422033246,1778502640000,-150.0,0.000339,120]
[422033253,1778502640000,-246.0,0.000339,120]
[422033257,1778502640000,-500.0,0.00034,120]
[422033239,1778502640000,-150.0,0.000339,120]
[422033287,1778502640000,-152.0,0.00035309,4]
[422033303,1778502640000,-1064.37126689,0.00035616,7]
[422033291,1778502640000,-154.0,0.00035507,30]
[422033330,1778502640000,-1064.37126689,0.00035616,7]
[422033328,1778502640000,-1064.37126689,0.00035616,7]
[422033318,1778502640000,-1064.37126689,0.00035616,7]
[422033321,1778502640000,-1064.37126689,0.00035616,7]
[422033320,1778502640000,-1064.37126689,0.00035616,7]
[422033290,1778502640000,-153.0,0.00035504,30]
[422033324,1778502640000,-1064.37126689,0.00035616,7]
[422033325,1778502640000,-1064.37126689,0.00035616,7]
[422033326,1778502640000,-1064.37126689,0.00035616,7]
[422033323,1778502640000,-1064.37126689,0.00035616,7]
[422033327,1778502640000,-1064.37126689,0.00035616,7]
[422033331,1778502640000,-1064.37126689,0.00035616,7]
[422033329,1778502640000,-1064.37126689,0.00035616,7]
[422033332,1778502640000,-1064.37126689,0.00035616,7]
[422033333,1778502640000,-1064.37126689,0.00035616,7]
[422033334,1778502640000,-1064.37126689,0.00035616,7]
[422033338,1778502640000,-1064.37126689,0.00035616,7]
[422033336,1778502640000,-1064.37126689,0.00035616,7]
[422033337,1778502640000,-1064.37126689,0.00035616,7]
[422033339,1778502640000,-1064.37126689,0.00035616,7]
[422033341,1778502640000,-1064.37126689,0.00035616,7]
[422033343,1778502640000,-1064.37126689,0.00035616,7]
[422033345,1778502640000,-1064.37126689,0.00035616,7]
[422033342,1778502640000,-1064.37126689,0.00035616,7]
[422033340,1778502640000,-1064.37126689,0.00035616,7]
[422033344,1778502640000,-1064.37126689,0.00035616,7]
[422033335,1778502640000,-1064.37126689,0.00035616,7]
[422033319,1778502640000,-1064.37126689,0.00035616,7]
[422033322,1778502640000,-1064.37126689,0.00035616,7]
[422033313,1778502640000,-1064.37126689,0.00035616,7]
[422033289,1778502640000,-158.0,0.00035504,30]
[422033293,1778502640000,-154.0,0.00035508,30]
[422033288,1778502640000,-231.21,0.000354,120]
[422033292,1778502640000,-159.0,0.00035507,30]
[422033295,1778502640000,-159.0,0.00035508,30]
[422033312,1778502640000,-1064.37126689,0.00035616,7]
[422033294,1778502640000,-317.0,0.00035508,30]
[422033296,1778502640000,-2419.52374849,0.00035543,2]
[422033299,1778502640000,-1064.37126689,0.00035616,7]
[422033298,1778502640000,-1064.37126689,0.00035616,7]
[422033297,1778502640000,-2707.63472876,0.00035566,2]
[422033301,1778502640000,-1064.37126689,0.00035616,7]
[422033304,1778502640000,-1064.37126689,0.00035616,7]
[422033305,1778502640000,-1064.37126689,0.00035616,7]
[422033300,1778502640000,-1064.37126689,0.00035616,7]
[422033302,1778502640000,-1064.37126689,0.00035616,7]
[422033307,1778502640000,-1064.37126689,0.00035616,7]
[422033314,1778502640000,-1064.37126689,0.00035616,7]
[422033315,1778502640000,-1064.37126689,0.00035616,7]
[422033316,1778502640000,-1064.37126689,0.00035616,7]
[422033311,1778502640000,-1064.37126689,0.00035616,7]
[422033310,1778502640000,-1064.37126689,0.00035616,7]
[422033308,1778502640000,-1064.37126689,0.00035616,7]
[422033309,1778502640000,-1064.37126689,0.00035616,7]
[422033306,1778502640000,-1064.37126689,0.00035616,7]
[422033317,1778502640000,-1064.37126689,0.00035616,7]
[422033355,1778502641000,-181.38150033,0.00027397,10]
[422033365,1778502641000,-2847.56936434,0.00035616,7]
[422033361,1778502641000,-416.12324564,0.00029999,2]
[422033362,1778502641000,-186.64334387,0.00029999,2]
[422033358,1778502641000,-500.0,0.00029999,2]
[422033364,1778502641000,-1064.37126689,0.00035616,7]
[422033356,1778502641000,-2306.73499893,0.00027397,10]
[422033350,1778502641000,-1064.37126689,0.00035616,7]
[422033354,1778502641000,-171.61849967,0.00027397,10]
[422033351,1778502641000,-312.40685643,0.00035616,7]
[422033348,1778502641000,-1064.37126689,0.00035616,7]
[422033347,1778502641000,-1064.37126689,0.00035616,7]
[422033346,1778502641000,-1064.37126689,0.00035616,7]
[422033349,1778502641000,-1064.37126689,0.00035616,7]
[422033359,1778502641000,-190.2601113,0.00029999,2]
[422033353,1778502641000,-160.33,0.00026027,2]
[422033360,1778502641000,-646.04319017,0.00029999,2]
[422033370,1778502641000,-2039.87870747,0.00035616,7]
[422033363,1778502641000,-751.96441046,0.00035616,7]
[422033357,1778502641000,-787.86500107,0.00027397,10]
[422033382,1778502641000,-159.71378153,0.0002634,7]
[422033377,1778502641000,-1941.33891123,0.00020295,2]
[422033381,1778502641000,-160.33,0.00026262,2]
[422033380,1778502641000,-160.33,0.00026183,30]
[422033379,1778502641000,-160.33,0.00024907,7]
[422033376,1778502641000,-875.50000001,0.00020295,2]
[422033375,1778502641000,-1152.38968876,0.00020295,2]
[422033378,1778502641000,-160.33,0.00024658,2]
[422033372,1778502641000,-143.56308898,0.00035616,7]
[422033369,1778502641000,-2847.56936434,0.00035616,7]
[422033371,1778502641000,-160.33,0.00026105,7]
[422033373,1778502641000,-305.153193,0.00035616,7]
[422033368,1778502641000,-2847.56936434,0.00035616,7]
[422033366,1778502641000,-2847.56936434,0.00035616,7]
[422033367,1778502641000,-2847.56936434,0.00035616,7]
[422033374,1778502641000,264.34,0.00027397,120]
[422033394,1778502642000,-2684.50376755,0.00035616,7]
[422033393,1778502642000,-163.06559679,0.00035616,7]
[422033390,1778502642000,-160.33,0.00026497,2]
[422033392,1778502642000,-358.97437489,0.00035616,7]
[422033391,1778502642000,-160.37,0.00026575,7]
[422033389,1778502642000,-160.33,0.00026418,30]
[422033386,1778502642000,-160.33,0.00025405,2]
[422033387,1778502642000,-160.33,0.00025654,7]
[422033383,1778502642000,-160.33,0.00025156,30]
[422033395,1778502642000,-2847.56936434,0.00035616,7]
[422033388,1778502642000,-0.61621847,0.0002634,7]
[422033397,1778502642000,-2847.56936434,0.00035616,7]
[422033400,1778502642000,-140.1086291,0.00035616,7]
[422033405,1778502642000,-2162.96086333,0.00035616,7]
[422033402,1778502642000,-2847.56936434,0.00035616,7]
[422033399,1778502642000,-2707.46073524,0.00035616,7]
[422033398,1778502642000,-2847.56936434,0.00035616,7]
[422033403,1778502642000,-2119.5659644,0.00035616,7]
[422033401,1778502642000,-2847.56936434,0.00035616,7]
[422033404,1778502642000,-728.00339994,0.00035616,7]
[422033406,1778502642000,-684.60850101,0.00035616,7]
[422033407,1778502642000,-1733.46674899,0.00035616,7]
[422033408,1778502642000,-1114.10261535,0.00035616,7]
[422033409,1778502642000,-1366.58813659,0.00035616,7]
[422033396,1778502642000,-2847.56936434,0.00035616,7]
[422033456,1778502646000,-509.0,0.00027946,5]
[422033457,1778502646000,-509.0,0.00029129,6]
[422033454,1778502646000,-509.0,0.00026763,4]
[422033458,1778502646000,-509.0,0.00030312,8]
[422033459,1778502646000,-509.0,0.00031495,9]
[422033453,1778502646000,-160.33,0.0002665,30]
[422033447,1778502646000,-339.39253979,0.00024397,2]
[422033452,1778502646000,-160.33,0.00026401,7]
[422033450,1778502646000,-160.33,0.00025903,30]
[422033448,1778502646000,-169.60746021,0.00024397,2]
[422033449,1778502646000,-509.0,0.0002558,3]
[422033451,1778502646000,-160.33,0.00026152,2]
[422033455,1778502646000,-160.33,0.00026899,2]
[422033460,1778502646000,-58.93349117,0.00032679,10]
[422033468,1778502646000,-938.9568264,0.00035616,7]
[422033462,1778502646000,-509.0,0.00033862,11]
[422033472,1778502646000,-2847.56936434,0.00035616,7]
[422033470,1778502646000,-2847.56936434,0.00035616,7]
[422033474,1778502646000,-2847.56936434,0.00035616,7]
[422033471,1778502646000,-2847.56936434,0.00035616,7]
[422033469,1778502646000,-1908.61253794,0.00035616,7]
[422033475,1778502646000,-725.51974137,0.00035616,7]
[422033467,1778502646000,-2847.56936434,0.00035616,7]
[422033465,1778502646000,-2847.56936434,0.00035616,7]
[422033466,1778502646000,-2847.56936434,0.00035616,7]
[422033464,1778502646000,-1480.98122775,0.00035616,7]
[422033463,1778502646000,-509.0,0.00035045,13]
[422033473,1778502646000,-2847.56936434,0.00035616,7]
[422033461,1778502646000,-450.06650883,0.00032679,10]
[422033492,1778503307000,151.0,0.0002739,120]
[422033493,1778503357000,164.21,0.00027393,120]
[422033503,1778503640000,-156.11,0.00016083,2]
[422033504,1778503640000,-300.0,0.00016489,2]
[422033505,1778503640000,-150.0,0.00016654,2]
[422033507,1778503640000,-150.19379515,0.00016921,2]
[422033506,1778503640000,-150.0,0.00016819,2]
[422033533,1778503832000,-450.0,0.00018657,2]
[422033532,1778503832000,-150.99,0.00018613,2]
[422033519,1778503832000,-1899.84756973,0.0001737,2]
[422033513,1778503832000,-171.0274432,0.00016921,2]
[422033517,1778503832000,-52.89265603,0.0001737,2]
[422033514,1778503832000,-754.76173783,0.000171,2]
[422033531,1778503832000,-150.73183692,0.00018613,2]
[422033521,1778503832000,-231.55920353,0.00017691,2]
[422033522,1778503832000,-80.07533647,0.00017691,2]
[422033520,1778503832000,-156.11,0.0001737,2]
[422033516,1778503832000,-150.0,0.00017369,2]
[422033515,1778503832000,-1045.97663691,0.000171,2]
[422033518,1778503832000,-464.72178409,0.0001737,2]
[422033511,1778503832000,-178.04909987,0.00016921,2]
[422033512,1778503832000,-300.0,0.00016921,2]
[422033523,1778503832000,-169.92466353,0.00017741,2]
[422033534,1778503832000,-9999.99,0.00018658,2]
[422033527,1778503832000,-144.50363087,0.00018612,2]
[422033547,1778503832000,-673.97872682,0.00019681,2]
[422033546,1778503832000,-303.72702952,0.00019681,2]
[422033542,1778503832000,-7084.80856939,0.00019681,2]
[422033540,1778503832000,-328.24289502,0.00019581,2]
[422033538,1778503832000,-156.11,0.00018658,2]
[422033536,1778503832000,-713.01690516,0.00018658,2]
[422033544,1778503832000,-1981.08146221,0.00019681,2]
[422033525,1778503832000,-328.24289502,0.00018251,2]
[422033537,1778503832000,-362.69,0.00018658,2]
[422033529,1778503832000,-300.0,0.00018613,2]
[422033528,1778503832000,-1200.0,0.00018612,2]
[422033526,1778503832000,-155.49636913,0.00018612,2]
[422033524,1778503832000,-597.78491347,0.00017741,2]
[422033530,1778503832000,-1347.75650764,0.00018613,2]
[422033535,1778503832000,-4815.32309484,0.00018658,2]
[422033569,1778503838000,-290.570001,0.00019681,2]
[422033570,1778503838000,-1887.80242846,0.00019681,2]
[422033568,1778503838000,-7954.81332218,0.00019681,2]
[422033608,1778503840000,-7834.60226826,0.00019681,2]
[422033609,1778503841000,-14028.58845492,0.00019681,2]
[422033610,1778503841000,-1198.20846186,0.00019681,2]
[422033615,1778503843000,-856.75015272,0.00019681,2]
[422033617,1778503844000,-10581.34084776,0.00019681,2]
[422033616,1778503844000,-598.87020583,0.00019681,2]
[422033626,1778503846000,-608.67322409,0.00019681,2]
[422033625,1778503846000,-4493.86042209,0.00019681,2]
[422033627,1778503847000,-2837.73894303,0.00019681,2]
[422033674,1778503937000,159.86,0.00014836,2]
[422033673,1778503937000,159.86,0.00013644,2]
[422033679,1778504493000,45331.973183,0.00015,2]
[422033689,1778504668000,459.12,0.0001101,2]
[422033688,1778504668000,459.12,0.00010527,2]
[422033687,1778504668000,459.12,0.00010043,2]
[422033686,1778504668000,459.12,9.56e-05,2]
[422033692,1778504669000,459.12,0.0001246,2]
[422033691,1778504669000,459.12,0.00011977,2]
[422033690,1778504669000,459.12,0.00011494,2]
[422033693,1778504670000,459.12,0.00012944,2]
[422033695,1778504670000,459.12,0.00013911,2]
[422033696,1778504670000,459.12,0.00014394,2]
[422033694,1778504670000,459.12,0.00013427,2]
[422033697,1778504671000,459.12,0.00014877,2]
[422033699,1778504677000,70923.478139,0.00012,2]
[422033698,1778504677000,57766.88811673,0.00012,2]
[422033700,1778504707000,570.0,0.00027397,120]
[422033701,1778504730000,-8639.43241367,0.000107,2]
[422033702,1778504730000,1955.14252,0.00027397,120]
[422033712,1778504847000,-300.0,0.00010698,2]
[422033713,1778504847000,-542.27625618,0.00010699,2]
[422033711,1778504847000,-160.32051676,0.000105,2]
[422033725,1778505031000,-150.0,0.00010699,2]
[422033726,1778505031000,-500.0,0.00010699,2]
[422033728,1778505031000,-307.2256278,0.00010699,2]
[422033727,1778505031000,-473.44068658,0.00010699,2]
[422033731,1778505032000,-558.10822378,0.00010699,2]
[422033730,1778505032000,-365.34688151,0.00010699,2]
[422033729,1778505032000,-97.11047749,0.00010699,2]
[422033737,1778505033000,-500.0,0.00010699,2]
[422033733,1778505033000,-163.33,0.00010699,2]
[422033734,1778505033000,-500.0,0.00010699,2]
[422033732,1778505033000,-276.54489471,0.00010699,2]
[422033735,1778505033000,-500.0,0.00010699,2]
[422033740,1778505033000,-376.63951687,0.00010699,2]
[422033738,1778505033000,-500.0,0.00010699,2]
[422033739,1778505033000,-500.0,0.00010699,2]
[422033741,1778505033000,-120887.31110029,0.000107,2]
[422033743,1778505033000,-20804.92041718,0.000107,2]
[422033742,1778505033000,-12719.3414123,0.000107,2]
[422033736,1778505033000,-194.02089378,0.00010699,2]
[422033748,1778505037000,-10092.88698349,0.000107,2]
[422033747,1778505037000,-26394.86598346,0.000107,2]
[422033746,1778505037000,-317.0,0.000107,2]
[422033751,1778505038000,-700.0,0.000107,2]
[422033750,1778505038000,-4157.5475158,0.000107,2]
[422033933,1778505039000,-63720.58055647,0.000107,2]
[422033934,1778505040000,-5986.41660921,0.000107,2]
[422033935,1778505040000,-265.1286,0.000107,2]
[422033936,1778505040000,-13477.48796778,0.000107,2]
[422033952,1778505042000,-299.03477789,0.000107,2]
[422033950,1778505042000,-1071.18168082,0.000107,2]
[422033951,1778505042000,-386.3724174,0.000107,2]
[422033949,1778505042000,-325.58015431,0.000107,2]
[422033947,1778505042000,-641.45900467,0.000107,2]
[422033948,1778505042000,-7839.97237987,0.000107,2]
[422033946,1778505042000,-287.08930101,0.000107,2]
[422033964,1778505045000,-6043.11456755,0.000107,2]
[422033966,1778505046000,-2025.55,0.000107,2]
[422033965,1778505046000,-310.8,0.000107,2]
[422034059,1778505409000,732.46,5.744e-05,2]
[422034061,1778505409000,732.46,6.325e-05,2]
[422034062,1778505409000,732.46,6.616e-05,2]
[422034060,1778505409000,732.46,6.035e-05,2]
[422034066,1778505410000,732.46,7.777e-05,2]
[422034065,1778505410000,732.46,7.487e-05,2]
[422034064,1778505410000,732.46,7.196e-05,2]
[422034063,1778505410000,732.46,6.906e-05,2]
[422034069,1778505411000,732.46,8.649e-05,2]
[422034068,1778505411000,732.46,8.358e-05,2]
[422034067,1778505411000,732.46,8.068e-05,2]
[422034072,1778505682000,794.81958456,0.00022,21]
[422034071,1778505682000,794.81958456,0.00022,21]
[422034074,1778505682000,233.97286472,0.00022,21]
[422034073,1778505682000,467.94572944,0.00022,21]
[422034076,1778506003000,-150.73565324,8.939e-05,2]
[422034077,1778506158000,-581.72434676,8.939e-05,2]
[422034083,1778506158000,-3053.67158939,9.372e-05,2]
[422034082,1778506158000,-2000.0,9.32e-05,2]
[422034081,1778506158000,-191.10699279,9.264e-05,2]
[422034079,1778506158000,-732.46,9.23e-05,2]
[422034078,1778506158000,-250.0,9.084e-05,2]
[422034080,1778506158000,-221.78984733,9.25e-05,2]